fUST/lending_fUST_20250616
["ID","MTS","AMOUNT","RATE_DAILY","PERIOD"]
[366108617,1750067449532,-460.0,0.00023013,4]
[366108619,1750067449542,-650.5,0.00023013,4]
[366108621,1750067449552,-460.0,0.00023013,4]
[366108623,1750067449561,-176.9937618,0.00023014,2]
[366108625,1750067449570,-158.8714084,0.00023014,2]
[366108627,1750067449579,-573.7859869,0.00023014,2]
[366108629,1750067449589,-153.0,0.00023014,2]
[366108631,1750067449598,-174.0,0.00023014,7]
[366108633,1750067449607,-3000.0,0.0002302,2]
[366108634,1750067449617,-3000.0,0.0002303,2]
[366108636,1750067449626,-3000.0,0.0002304,2]
[366108638,1750067449636,-809.93,0.00023046,7]
[366108640,1750067449646,-3000.0,0.0002305,2]
[366108642,1750067449656,-3000.0,0.0002306,2]
[366108644,1750067449665,-3000.0,0.0002307,2]
[366108646,1750067449674,-500.0,0.00023073,2]
[366108648,1750067449684,-510.45944601,0.00023077,2]
[366108650,1750067449693,-3000.0,0.0002308,2]
[366108652,1750067449703,-3000.0,0.0002309,2]
[366108654,1750067449712,-151.0,0.0002309,7]
[366108656,1750067449721,-151.0,0.0002309,7]
[366108657,1750067449731,-3000.0,0.000231,2]
[366108660,1750067449740,-500.0,0.00023101,2]
[366108661,1750067449749,-3000.0,0.0002311,2]
[366108663,1750067449759,-3000.0,0.0002312,2]
[366108665,1750067449768,-500.0,0.00023122,2]
[366108667,1750067449778,-253.26406188,0.00023123,3]
[366108669,1750067449787,-3000.0,0.0002313,2]
[366108671,1750067449798,-500.0,0.00023138,2]
[366108673,1750067449807,-3000.0,0.0002314,2]
[366108675,1750067449817,-500.0,0.00023145,2]
[366108677,1750067449827,-3000.0,0.0002315,2]
[366108679,1750067449836,-500.0,0.00023151,2]
[366108681,1750067449845,-500.0,0.00023152,2]
[366108683,1750067449856,-809.93,0.00023158,7]
[366108685,1750067449866,-3000.0,0.0002316,2]
[366108687,1750067449875,-3000.0,0.0002317,2]
[366108689,1750067449884,-3000.0,0.0002318,2]
[366108691,1750067449894,-3000.0,0.0002319,2]
[366108693,1750067449904,-20115.0567437,0.000232,7]
[366108695,1750067449914,-3000.0,0.000232,2]
[366108697,1750067449923,-151.0,0.000232,7]
[366108699,1750067449933,-151.0,0.000232,7]
[366108701,1750067449943,-151.0,0.000232,7]
[366108703,1750067449953,-151.0,0.000232,7]
[366108705,1750067449962,-3000.0,0.0002321,2]
[366108707,1750067449972,-3000.0,0.0002322,2]
[366108709,1750067449981,-3000.0,0.0002323,2]
[366108711,1750067449991,-3000.0,0.0002324,2]
[366108713,1750067450001,-500.0,0.00023242,2]
[366108715,1750067450011,-769.77043432,0.00023245,8]
[366108717,1750067450020,-500.0,0.00023246,2]
[366108718,1750067450029,-3000.0,0.0002325,2]
[366108719,1750067450039,-229.90125484,0.00023254,2]
[366108720,1750067450048,-160.0,0.00023254,2]
[366108721,1750067450057,-424.54874296,0.00023254,2]
[366108722,1750067450067,-835.67987521,0.00023254,2]
[366108723,1750067450080,-213.36025772,0.00023254,2]
[366108724,1750067450089,-3000.0,0.0002326,2]
[366108725,1750067450099,-5006.956934,0.0002327,2]
[366108726,1750067450108,-809.93,0.00023271,7]
[366108727,1750067450118,-471.12,0.00023287,4]
[366108728,1750067450127,-460.0,0.00023287,4]
[366108729,1750067450137,-361.18990623,0.00023287,4]
[366108730,1750067450146,-460.0,0.00023287,2]
[366108731,1750067450158,-460.0,0.00023287,4]
[366108732,1750067450167,-460.0,0.00023287,4]
[366108733,1750067450176,-274.78,0.00023287,4]
[366108734,1750067450185,-460.0,0.00023287,4]
[366108735,1750067450194,-590.65,0.00023287,2]
[366108736,1750067450204,-460.0,0.00023287,4]
[366108737,1750067450213,-460.0,0.00023287,4]
[366108738,1750067450222,-168.16597543,0.00023287,4]
[366108739,1750067450231,-460.0,0.00023287,4]
[366108740,1750067450241,-460.0,0.00023287,4]
[366108741,1750067450251,-460.0,0.00023287,4]
[366108742,1750067450260,-440.0,0.00023287,4]
[366108743,1750067450269,-306.73726303,0.00023287,4]
[366108744,1750067450278,-1171.34,0.00023287,4]
[366108745,1750067450287,-460.0,0.00023287,4]
[366108746,1750067450299,-460.0,0.00023287,4]
[366108747,1750067450308,-660.81,0.00023287,4]
[366108748,1750067450317,-977.33,0.00023287,4]
[366108749,1750067450326,-760.03,0.00023287,4]
[366108750,1750067450335,-1108.41,0.00023287,4]
[366108751,1750067450345,-235.86423036,0.00023287,4]
[366108752,1750067450354,-460.0,0.00023287,4]
[366108753,1750067450363,-460.0,0.00023287,4]
[366108754,1750067450372,-460.0,0.00023287,4]
[366108755,1750067450382,-460.0,0.00023287,4]
[366108756,1750067450391,-460.0,0.00023287,4]
[366108757,1750067450400,-558.52,0.00023287,4]
[366108758,1750067450409,-460.0,0.00023287,4]
[366108759,1750067450418,-460.0,0.00023287,4]
[366108760,1750067450427,-460.0,0.00023287,4]
[366108761,1750067450436,-460.0,0.00023287,4]
[366108762,1750067450445,-483.82422374,0.00023287,4]
[366108763,1750067450454,-490.54,0.00023287,4]
[366108764,1750067450464,-460.0,0.00023287,4]
[366108765,1750067450473,-460.0,0.00023287,4]
[366108766,1750067450482,-160.06894057,0.00023287,4]
[366108767,1750067450492,-460.0,0.00023287,4]
[366108768,1750067450501,-165.68868608,0.00023287,4]
[366108769,1750067450511,-460.0,0.00023287,4]
[366108770,1750067450520,-460.0,0.00023287,4]
[366108771,1750067450529,-463.44683308,0.00023287,4]
[366108772,1750067450539,-460.0,0.00023287,4]
[366108773,1750067450548,-460.0,0.00023287,4]
[366108774,1750067450557,-460.0,0.00023287,4]
[366108775,1750067450567,-460.0,0.00023287,4]
[366108776,1750067450576,-460.0,0.00023287,4]
[366108777,1750067450585,-460.0,0.00023287,4]
[366108778,1750067450594,-460.0,0.00023287,4]
[366108779,1750067450604,-460.0,0.00023287,4]
[366108780,1750067450613,-460.0,0.00023287,4]
[366108781,1750067450623,-440.0,0.00023287,4]
[366108782,1750067450631,-460.0,0.00023287,4]
[366108783,1750067450641,-460.0,0.00023287,4]
[366108784,1750067450651,-460.0,0.00023287,4]
[366108785,1750067450660,-460.0,0.00023287,4]
[366108786,1750067450669,-460.0,0.00023287,4]
[366108787,1750067450678,-206.80346533,0.00023287,4]
[366108788,1750067450687,-460.0,0.00023287,4]
[366108791,1750067450785,-460.0,0.00023287,4]
[366108792,1750067450796,-460.0,0.00023287,4]
[366108793,1750067450805,-460.0,0.00023287,4]
[366108794,1750067450815,-1112.77,0.00023287,4]
[366108795,1750067450824,-460.0,0.00023287,4]
[366108796,1750067450834,-460.0,0.00023287,4]
[366108797,1750067450843,-460.0,0.00023287,4]
[366108798,1750067450853,-460.0,0.00023287,4]
[366108799,1750067450862,-525.88070435,0.00023287,4]
[366108800,1750067450872,-874.2,0.00023287,4]
[366108801,1750067450881,-460.0,0.00023287,4]
[366108802,1750067450891,-460.0,0.00023287,4]
[366108803,1750067450900,-460.0,0.00023287,4]
[366108804,1750067450910,-460.0,0.00023287,4]
[366108805,1750067450920,-460.0,0.00023287,4]
[366108806,1750067450929,-460.0,0.00023287,4]
[366108807,1750067450939,-650.5,0.00023287,4]
[366108808,1750067450948,-460.0,0.00023287,4]
[366108809,1750067450958,-500.0,0.00023288,2]
[366108810,1750067450967,-151.0,0.0002329,7]
[366108811,1750067450977,-158.74428063,0.0002329,4]
[366108812,1750067450987,-158.74428063,0.0002329,4]
[366108813,1750067450996,-158.74428063,0.0002329,4]
[366108814,1750067451006,-158.74428063,0.0002329,4]
[366108815,1750067451015,-158.74428063,0.0002329,4]
[366108816,1750067451025,-158.74428063,0.0002329,4]
[366108817,1750067451035,-158.74428063,0.0002329,4]
[366108818,1750067451045,-158.74428063,0.0002329,4]
[366108819,1750067451058,-158.74428063,0.0002329,4]
[366108820,1750067451068,-158.74428063,0.0002329,4]
[366108821,1750067451082,-158.74428063,0.0002329,4]
[366108822,1750067451092,-158.74428063,0.0002329,4]
[366108823,1750067451101,-158.74428063,0.0002329,4]
[366108824,1750067451111,-158.74428063,0.0002329,4]
[366108825,1750067451121,-158.74428063,0.0002329,4]
[366108826,1750067451131,-158.74428063,0.0002329,4]
[366108827,1750067451141,-158.74,0.0002329,4]
[366108828,1750067451151,-314.84282324,0.0002329,4]
[366108829,1750067451160,-314.84282324,0.0002329,4]
[366108831,1750067451170,-314.84282324,0.0002329,4]
[366108832,1750067451179,-314.84282324,0.0002329,4]
[366108833,1750067451192,-314.84282324,0.0002329,4]
[366108834,1750067451201,-314.84282324,0.0002329,4]
[366108835,1750067451210,-314.84282324,0.0002329,4]
[366108836,1750067451219,-314.84282324,0.0002329,4]
[366108837,1750067451229,-314.84282324,0.0002329,4]
[366108838,1750067451238,-314.84282324,0.0002329,4]
[366108839,1750067451248,-314.84282324,0.0002329,4]
[366108840,1750067451257,-314.84282324,0.0002329,4]
[366108841,1750067451267,-314.84282324,0.0002329,4]
[366108842,1750067451277,-314.84282324,0.0002329,4]
[366108843,1750067451286,-158.92653567,0.0002329,4]
[366108844,1750067451296,-158.92653567,0.0002329,4]
[366108845,1750067451305,-314.84282324,0.00023303,4]
[366108846,1750067451315,-500.0,0.00023307,2]
[366108847,1750067451325,-500.0,0.00023308,2]
[366108848,1750067451335,-500.0,0.0002332,2]
[366108849,1750067451344,-500.0,0.00023356,2]
[366108850,1750067451354,-4717.87099878,0.00023359,2]
[366108851,1750067451364,-500.0,0.0002336,2]
[366108852,1750067451374,-158.8714084,0.0002337,2]
[366108853,1750067451385,-176.9937618,0.0002337,2]
[366108854,1750067451394,-573.7859869,0.0002337,2]
[366108855,1750067451404,-823.0,0.00023381,2]
[366108856,1750067451414,-809.93,0.00023383,7]
[366108857,1750067451424,-500.0,0.00023393,2]
[366108858,1750067451434,-314.84282324,0.00023422,4]
[366108859,1750067451443,-6363.94,0.00023437,2]
[366108860,1750067451453,-500.0,0.00023441,2]
[366108861,1750067451464,-500.0,0.00023445,2]
[366108862,1750067451473,-500.0,0.0002345,2]
[366108863,1750067451483,-769.77043432,0.00023486,9]
[366108864,1750067451492,-809.93,0.00023496,7]
[366108865,1750067451502,-1000.0,0.00023499,3]
[366108866,1750067451512,-1000.0,0.00023521,2]
[366108867,1750067451522,-1200.0,0.00023521,2]
[366108868,1750067451531,-314.84282324,0.00023542,4]
[366108869,1750067451541,-471.12,0.00023561,4]
[366108870,1750067451551,-190.80421666,0.00023561,4]
[366108871,1750067451559,-460.0,0.00023561,2]
[366108872,1750067451569,-460.0,0.00023561,4]
[366108873,1750067451578,-460.0,0.00023561,4]
[366108874,1750067451588,-344.36779415,0.00023561,4]
[366108875,1750067451597,-590.65,0.00023561,2]
[366108876,1750067451607,-460.0,0.00023561,4]
[366108877,1750067451616,-202.7051326,0.00023561,4]
[366108878,1750067451626,-460.0,0.00023561,4]
[366108879,1750067451635,-460.0,0.00023561,4]
[366108880,1750067451645,-1171.34,0.00023561,4]
[366108881,1750067451655,-460.0,0.00023561,4]
[366108882,1750067451664,-540.0,0.00023561,4]
[366108883,1750067451673,-660.81,0.00023561,4]
[366108884,1750067451684,-977.33,0.00023561,4]
[366108885,1750067451693,-760.03,0.00023561,4]
[366108886,1750067451703,-1108.41,0.00023561,4]
[366108887,1750067451712,-460.0,0.00023561,4]
[366108888,1750067451722,-460.0,0.00023561,4]
[366108889,1750067451731,-582.24180588,0.00023561,4]
[366108890,1750067451740,-460.0,0.00023561,4]
[366108891,1750067451749,-460.0,0.00023561,4]
[366108892,1750067451759,-558.52,0.00023561,4]
[366108893,1750067451768,-460.0,0.00023561,4]
[366108894,1750067451778,-150.6578247,0.00023561,4]
[366108895,1750067451787,-490.54,0.00023561,4]
[366108896,1750067451797,-440.0,0.00023561,4]
[366108897,1750067451806,-460.0,0.00023561,4]
[366108898,1750067451817,-460.0,0.00023561,4]
[366108899,1750067451827,-460.0,0.00023561,4]
[366108900,1750067451836,-392.63281644,0.00023561,4]
[366108901,1750067451845,-460.0,0.00023561,4]
[366108902,1750067451854,-460.0,0.00023561,4]
[366108903,1750067451865,-460.0,0.00023561,4]
[366108904,1750067451874,-460.0,0.00023561,4]
[366108905,1750067451883,-460.0,0.00023561,4]
[366108906,1750067451893,-460.0,0.00023561,4]
[366108907,1750067451902,-460.0,0.00023561,4]
[366108908,1750067451911,-241.12,0.00023561,4]
[366108909,1750067451921,-240.0,0.00023561,4]
[366108910,1750067451930,-460.0,0.00023561,4]
[366108911,1750067451940,-460.0,0.00023561,4]
[366108912,1750067451949,-460.0,0.00023561,4]
[366108913,1750067451959,-460.0,0.00023561,4]
[366108914,1750067451969,-460.0,0.00023561,4]
[366108915,1750067451978,-460.0,0.00023561,4]
[366108916,1750067451988,-460.0,0.00023561,4]
[366108917,1750067451998,-460.0,0.00023561,4]
[366108918,1750067452008,-460.0,0.00023561,4]
[366108919,1750067452018,-627.55084988,0.00023561,4]
[366108920,1750067452288,-485.21915012,0.00023561,4]
[366108921,1750067452299,-460.0,0.00023561,4]
[366108922,1750067452309,-460.0,0.00023561,4]
[366108923,1750067452318,-453.36178887,0.00023561,4]
[366108924,1750067452328,-874.2,0.00023561,4]
[366108925,1750067452337,-460.0,0.00023561,4]
[366108926,1750067452347,-460.0,0.00023561,4]
[366108927,1750067452356,-460.0,0.00023561,4]
[366108928,1750067452366,-460.0,0.00023561,4]
[366108929,1750067452375,-460.0,0.00023561,4]
[366108930,1750067452384,-460.0,0.00023561,4]
[366108931,1750067452393,-650.5,0.00023561,4]
[366108932,1750067452403,-460.0,0.00023561,4]
[366108933,1750067452412,-500.0,0.0002359,2]
[366108934,1750067452422,-809.93,0.00023608,7]
[366108935,1750067452432,-200.0,0.00023632,2]
[366108936,1750067452441,-500.0,0.00023646,2]
[366108937,1750067452451,-500.0,0.0002365,2]
[366108938,1750067452461,-314.84282324,0.00023661,4]
[366108939,1750067452471,-809.93,0.0002372,7]
[366108940,1750067452480,-156.02893421,0.00023726,2]
[366108941,1750067452488,-3292.0,0.00023727,2]
[366108942,1750067452499,-769.77043432,0.00023728,9]
[366108943,1750067452509,-500.0,0.00023739,2]
[366108944,1750067452519,-314.84282324,0.00023781,4]
[366108945,1750067452528,-23692.9976738,0.000238,3]
[366108946,1750067452537,-23304.92138262,0.000238,5]
[366108947,1750067452549,-2565.20395845,0.000238,5]
[366108948,1750067454512,-9.68938424,0.00021917,4]
[366108949,1750067454525,-450.31061576,0.00021917,4]
[366108950,1750067454535,-2636.09170924,0.000238,5]
[366108951,1750067454610,-460.0,0.00021917,4]
[366108952,1750067454619,-561.13,0.00022191,4]
[366108953,1750067454629,-305.66,0.00022474,3]
[366108954,1750067454639,-150.0,0.00022588,2]
[366108955,1750067454648,-1705.85489733,0.000238,5]
[366108956,1750067454660,-2513.15306016,0.000238,5]
[366108957,1750067454671,-5020.60732188,0.000238,5]
[366108958,1750067454750,-468.6617937,0.00021917,4]
[366108959,1750067454759,-460.0,0.00021917,4]
[366108960,1750067454769,-460.0,0.00021917,2]
[366108961,1750067454779,-460.0,0.00021917,4]
[366108962,1750067454788,-460.0,0.00021917,4]
[366108963,1750067454798,-460.0,0.00022191,2]
[366108964,1750067454808,-1740.41994118,0.000238,5]
[366108965,1750067455095,500.0,0.00017999,2]
[366108966,1750067455278,500.0,0.00017999,2]
[366108967,1750067455315,640.44365741,0.00017999,2]
[366108968,1750067455345,537.03993376,0.00017999,2]
[366108969,1750067455377,500.0,0.00017999,2]
[366108970,1750067455414,500.0,0.00017999,2]
[366108971,1750067455445,500.0,0.00017999,2]
[366108972,1750067455476,500.0,0.00017999,2]
[366108973,1750067455520,500.0,0.00017999,2]
[366108974,1750067455555,500.0,0.00017999,2]
[366108975,1750067455591,500.0,0.00017999,2]
[366108976,1750067455622,452.34719676,0.00017999,2]
[366108977,1750067455652,500.0,0.00017999,2]
[366108978,1750067455687,500.0,0.00017999,2]
[366108979,1750067455726,500.0,0.00017999,2]
[366108980,1750067455757,500.0,0.00017999,2]
[366108981,1750067455789,500.0,0.00017999,2]
[366108982,1750067455825,500.0,0.00017999,2]
[366108984,1750067479010,500.0,0.00025031,120]
[366108985,1750067484964,500.0,0.00025031,120]
[366108986,1750067494382,500.0,0.00025031,120]
[366108987,1750067542763,261.05632,0.00025031,120]
[366108988,1750067610755,200.0,0.00024142,120]
[366108992,1750067740828,165.477445,0.00013699,2]
[366108994,1750067875349,1000.0,0.00017999,2]
[366108995,1750067875589,1000.0,0.00017999,2]
[366108996,1750067910795,200.0,0.00023931,120]
[366108997,1750067917542,183.28224571,0.00024657,120]
[366108998,1750067945208,1000.0,0.00024,120]
[366108999,1750067951207,1000.0,0.00024,120]
[366109000,1750067956504,1000.0,0.00024,120]
[366109001,1750067957342,1000.0,0.00024,120]
[366109002,1750067972060,200.0,0.00024308,120]
[366109004,1750068000874,460.0,0.00025029,60]
[366109005,1750068019342,1000.0,0.00025029,60]
[366109007,1750068122173,300.0,0.00025029,60]
[366109008,1750068186659,151.0,0.00024657,120]
[366109009,1750068367061,1165.05001915,0.00017999,2]
[366109020,1750068444863,1000.0,0.00017999,2]
[366109021,1750068445104,958.91879756,0.00017999,2]
[366109022,1750068446327,646.2419338,0.00018281,120]
[366109024,1750068510764,200.0,0.00024397,120]
[366109026,1750068543428,792.0,0.00024657,120]
[366109067,1750068632354,-187.34525257,0.00018,2]
[366109069,1750068632364,-98.95844365,0.00018358,2]
[366109071,1750068632405,-6458.32061105,0.00018358,2]
[366109072,1750068632414,-22.96696973,0.000189,2]
[366109091,1750068638210,-228.48706114,0.000189,2]
[366109093,1750068638221,-151.0,0.00019,2]
[366109095,1750068638230,-222.0415251,0.00019002,2]
[366109097,1750068638240,-568.26035261,0.00019176,2]
[366109098,1750068638251,-568.26035261,0.00019176,2]
[366109100,1750068638262,-568.26035261,0.00019176,2]
[366109101,1750068638272,-568.26035261,0.00019176,2]
[366109102,1750068638282,-568.26035261,0.00019176,2]
[366109103,1750068638291,-568.26035261,0.00019176,2]
[366109104,1750068638301,-568.26035261,0.00019176,2]
[366109105,1750068638317,-568.26035261,0.00019176,2]
[366109106,1750068638333,-568.26035261,0.00019176,2]
[366109107,1750068638349,-568.26035261,0.00019176,2]
[366109108,1750068638364,-568.26035261,0.00019176,2]
[366109109,1750068638380,-568.26035261,0.00019176,2]
[366109110,1750068638391,-568.26035261,0.00019176,2]
[366109111,1750068638406,-568.26035261,0.00019176,2]
[366109112,1750068638420,-568.26035261,0.00019176,2]
[366109113,1750068638433,-500.0,0.00019176,2]
[366109114,1750068638447,-500.0,0.00019176,2]
[366109115,1750068638461,-200.42940891,0.00019176,2]
[366109116,1750068638474,-500.0,0.00019176,2]
[366109117,1750068638487,-500.0,0.00019176,2]
[366109118,1750068638502,-500.0,0.00019176,2]
[366109119,1750068638517,-500.0,0.00019176,2]
[366109120,1750068638530,-500.0,0.00019176,2]
[366109121,1750068638541,-500.0,0.00019176,2]
[366109122,1750068638557,-500.0,0.00019176,2]
[366109123,1750068638574,-181.8462112,0.00019176,2]
[366109124,1750068638587,-500.0,0.00019176,2]
[366109125,1750068638601,-500.0,0.00019176,2]
[366109126,1750068638616,-500.0,0.00019176,2]
[366109127,1750068638629,-500.0,0.00019176,2]
[366109128,1750068638643,-563.20008636,0.00019176,2]
[366109129,1750068638654,-500.0,0.00019176,2]
[366109130,1750068638669,-500.0,0.00019176,2]
[366109131,1750068638680,-500.0,0.00019176,2]
[366109132,1750068638695,-500.0,0.00019176,2]
[366109133,1750068638709,-270.75101448,0.00019176,2]
[366109134,1750068638723,-500.0,0.00019176,2]
[366109135,1750068638738,-295.33644309,0.00019176,2]
[366109136,1750068638752,-500.0,0.00019176,2]
[366109137,1750068638765,-110.25656236,0.00019176,2]
[366109138,1750068638783,-389.74343764,0.00019176,2]
[366109139,1750068638796,-500.0,0.00019176,2]
[366109140,1750068638807,-130.25656236,0.00019176,2]
[366109141,1750068638884,-369.74343764,0.00019176,2]
[366109142,1750068638897,-159.15365354,0.00019176,2]
[366109143,1750068638911,-340.84634646,0.00019176,2]
[366109144,1750068638923,-95.91375799,0.00019176,2]
[366109145,1750068638939,-404.08624201,0.00019176,2]
[366109146,1750068638952,-500.0,0.00019176,2]
[366109147,1750068638965,-614.23302526,0.00019176,2]
[366109148,1750068638977,-500.0,0.00019176,2]
[366109149,1750068638987,-500.0,0.00019176,2]
[366109150,1750068638999,-500.0,0.00019176,2]
[366109151,1750068639014,-500.0,0.00019176,2]
[366109152,1750068639027,-568.26035261,0.00019176,2]
[366109153,1750068639040,-500.0,0.00019176,2]
[366109154,1750068639052,-500.0,0.00019176,2]
[366109155,1750068639064,-480.80216982,0.00019176,2]
[366109156,1750068639077,-500.0,0.00019176,2]
[366109157,1750068639088,-500.0,0.00019176,2]
[366109158,1750068639101,-500.0,0.00019176,2]
[366109159,1750068639114,-500.0,0.00019176,2]
[366109160,1750068639126,-300.0,0.00019176,2]
[366109161,1750068639139,-1200.0,0.00019176,2]
[366109162,1750068639151,-50000.0,0.00019177,2]
[366109163,1750068639163,-300.0,0.00019177,2]
[366109164,1750068639176,-453.04554069,0.00019178,2]
[366109165,1750068639188,-500.0,0.00019178,2]
[366109166,1750068639200,-500.0,0.00019178,2]
[366109167,1750068639213,-500.0,0.00019178,2]
[366109168,1750068639225,-196.14217863,0.00019178,2]
[366109169,1750068639238,-11377.6692299,0.00019178,2]
[366109170,1750068639250,-184.060435,0.00019178,2]
[366109171,1750068639263,-151.0,0.000193,2]
[366109172,1750068639276,-264.508225,0.00019335,2]
[366109173,1750068639288,-341.23546241,0.00019335,2]
[366109174,1750068639300,-359.14554405,0.00019699,2]
[366109175,1750068639313,-151.0,0.000198,2]
[366109176,1750068639324,-160.91875624,0.000198,2]
[366109177,1750068639337,-171.28892116,0.00019837,2]
[366109178,1750068639350,-160.0,0.00019922,2]
[366109179,1750068639362,-207.4,0.00019928,2]
[366109180,1750068639375,-5000.0,0.00019941,2]
[366109181,1750068639388,-1000.0,0.0002,20]
[366109182,1750068639400,-239.64954421,0.0002,2]
[366109183,1750068639427,-153.7958606,0.0002,4]
[366109184,1750068639444,-835.48400433,0.00020057,2]
[366109185,1750068639459,-500.0,0.00020057,2]
[366109186,1750068639476,-500.0,0.00020057,2]
[366109187,1750068639492,-500.0,0.00020057,2]
[366109188,1750068639506,-500.0,0.00020057,2]
[366109189,1750068639521,-533.47031743,0.00020057,2]
[366109190,1750068639535,-25000.0,0.00020057,2]
[366109191,1750068639549,-12256.06650919,0.00020057,2]
[366109192,1750068639565,-171.28892115,0.00020069,2]
[366109193,1750068639580,-152.18592288,0.00020151,2]
[366109194,1750068639593,-1103.0,0.00020161,2]
[366109195,1750068639608,-921.92111287,0.000202,2]
[366109196,1750068639622,-921.92111276,0.000202,2]
[366109197,1750068639635,-168.0,0.00020249,2]
[366109198,1750068639648,-3068.43224458,0.00020284,2]
[366109199,1750068639660,-171.28892115,0.00020301,2]
[366109200,1750068639677,-921.92111276,0.00020314,3]
[366109201,1750068639692,-203.72,0.0002036,2]
[366109202,1750068639705,-579.48,0.00020378,3]
[366109203,1750068639715,-683.99,0.00020378,3]
[366109204,1750068639903,-341.99,0.00020378,3]
[366109205,1750068639914,-171.0,0.00020378,3]
[366109206,1750068639925,-1659.01,0.00020384,2]
[366109207,1750068639935,-513.01,0.00020393,3]
[366109208,1750068639946,-229.90125484,0.00020393,2]
[366109209,1750068639960,-424.54874296,0.00020393,2]
[366109210,1750068639970,-160.0,0.00020393,2]
[366109211,1750068639981,-835.67987521,0.00020393,2]
[366109213,1750068639991,-213.36025772,0.00020393,2]
[366109214,1750068640003,-213.559,0.000204,2]
[366109216,1750068640013,-160.0,0.00020402,2]
[366109218,1750068640023,-160.0,0.00020403,2]
[366109219,1750068640035,-24900.0,0.00020403,2]
[366109221,1750068640045,-359.14554402,0.00020447,2]
[366109223,1750068640056,-168.0,0.00020516,2]
[366109225,1750068640065,-921.92111276,0.00020521,3]
[366109227,1750068640076,-226.842,0.00020527,2]
[366109229,1750068640086,-500.0,0.00020547,2]
[366109231,1750068640096,-25000.0,0.00020605,2]
[366109233,1750068640107,-807.75663546,0.00020676,2]
[366109235,1750068640117,-381.02903937,0.0002069,2]
[366109237,1750068640127,-921.92111276,0.00020728,3]
[366109239,1750068640137,-3068.43224458,0.00020736,2]
[366109241,1750068640147,-231.39613284,0.00020856,2]
[366109243,1750068640157,-1103.0,0.0002089,2]
[366109245,1750068640166,-420.0,0.00020898,2]
[366109247,1750068640177,-420.0,0.00020899,2]
[366109249,1750068640187,-921.92111276,0.00020934,4]
[366109251,1750068640196,-1680.0,0.00020999,2]
[366109253,1750068640206,-1000.0,0.00021,21]
[366109254,1750068640216,-4549.72508676,0.00021,2]
[366109256,1750068640226,-1103.0,0.00021007,2]
[366109258,1750068640236,-500.0,0.00021095,3]
[366109261,1750068640246,-921.92111276,0.00021141,4]
[366109263,1750068640256,-25000.0,0.00021153,2]
[366109265,1750068640267,-3068.43224458,0.00021188,2]
[366109267,1750068640277,-359.14554402,0.00021194,2]
[366109269,1750068640286,-168.0,0.00021282,2]
[366109270,1750068640296,-215.0738,0.00021297,2]
[366109272,1750068640305,-921.92111276,0.00021348,5]
[366109274,1750068640315,-3318.03,0.00021354,2]
[366109276,1750068640325,-921.92111276,0.00021555,5]
[366109278,1750068640335,-3068.43224458,0.00021639,2]
[366109280,1750068640346,-168.0,0.0002168,2]
[366109282,1750068640356,-25000.0,0.00021701,2]
[366109285,1750068640366,-168.0,0.00021731,2]
[366109287,1750068640376,-1158.96,0.00021748,3]
[366109289,1750068640386,-1367.98,0.00021748,3]